fUSD/lending_fUSD_20240407
["ID","MTS","AMOUNT","RATE_DAILY","PERIOD"]
[321797849,1712521842042,-85524.79004969,0.00024637,2]
[321797850,1712521842052,-15869.2389762,0.00024639,2]
[321797851,1712521842063,-15869.2389762,0.00024639,2]
[321797852,1712521842072,-955.66642892,0.0002464,2]
[321797853,1712521842081,-955.66642892,0.0002464,2]
[321797854,1712521842091,-595.26313555,0.0002464,2]
[321797855,1712521842102,-595.26313555,0.0002464,2]
[321797856,1712521842111,-15869.2389762,0.00024643,2]
[321797857,1712521842120,-193.8049854,0.00024645,2]
[321797858,1712521842130,-10644.86875767,0.00024646,2]
[321797859,1712521842139,-193.8049854,0.00024647,2]
[321797860,1712521842148,-13843.08920374,0.00024647,2]
[321797861,1712521842158,-595.26313555,0.00024647,2]
[321797862,1712521842167,-595.26313555,0.00024648,2]
[321797863,1712521842176,-85524.79004969,0.0002465,2]
[321797864,1712521842186,-595.26313555,0.00024655,2]
[321797865,1712521842196,-15869.2389762,0.00024657,2]
[321797866,1712521842205,-311.15614,0.00024658,2]
[321797867,1712521842215,-500.0,0.00024658,2]
[321797868,1712521842225,-594.35629821,0.00024658,2]
[321797869,1712521842234,-10644.86875767,0.00024661,2]
[321797870,1712521842245,-595.26313555,0.00024663,2]
[321797871,1712521842254,-594.35629821,0.00024663,2]
[321797872,1712521842264,-955.66642892,0.00024664,2]
[321797873,1712521842274,-85524.79004969,0.00024665,2]
[321797874,1712521842284,-955.66642892,0.00024666,2]
[321797875,1712521842293,-10644.86875767,0.00024667,2]
[321797876,1712521842303,-15869.2389762,0.00024667,2]
[321797877,1712521842312,-85524.79004969,0.00024673,2]
[321797878,1712521842322,-335.63864821,0.00024675,2]
[321797879,1712521842331,-193.8049854,0.00024676,2]
[321797880,1712521842340,-594.35629821,0.00024677,2]
[321797881,1712521842349,-10644.86875767,0.00024677,2]
[321797882,1712521842358,-13843.08920374,0.00024681,2]
[321797883,1712521842368,-594.35629821,0.00024684,2]
[321797884,1712521842378,-15869.2389762,0.00024685,2]
[321797885,1712521842387,-193.8049854,0.00024686,2]
[321797886,1712521842396,-955.66642892,0.00024686,2]
[321797887,1712521842406,-595.26313555,0.00024687,2]
[321797888,1712521842415,-13843.08920374,0.00024688,2]
[321797889,1712521842424,-594.35629821,0.00024688,2]
[321797890,1712521842434,-595.26313555,0.0002469,2]
[321797892,1712521842443,-15869.2389762,0.00024691,2]
[321797893,1712521842452,-15869.2389762,0.00024691,2]
[321797894,1712521842461,-10644.86875767,0.00024695,2]
[321797895,1712521842470,-13843.08920374,0.00024696,2]
[321797896,1712521842479,-85524.79004969,0.00024697,2]
[321797897,1712521842489,-151.0,0.00024697,7]
[321797898,1712521842498,-266.17282,0.00024697,7]
[321797900,1712521842508,-266.17282,0.00024697,7]
[321797901,1712521842517,-151.0,0.00024697,7]
[321797902,1712521842526,-151.0,0.00024697,7]
[321797903,1712521842535,-155.0,0.00024697,7]
[321797904,1712521842544,-193.8049854,0.00024699,2]
[321797905,1712521842554,-13843.08920374,0.00024699,2]
[321797906,1712521842563,-151.0,0.00024699,7]
[321797907,1712521842573,-151.0,0.00024699,7]
[321797908,1712521842583,-151.0,0.00024699,7]
[321797909,1712521842592,-151.0,0.00024699,7]
[321797910,1712521842601,-151.0,0.00024699,7]
[321797911,1712521842611,-151.0,0.00024699,7]
[321797912,1712521842621,-151.0,0.00024699,7]
[321797913,1712521842631,-151.0,0.00024699,7]
[321797914,1712521842642,-658.909906,0.00024699,7]
[321797915,1712521842652,-658.909906,0.00024699,7]
[321797916,1712521842662,-458.01647253,0.0002472,2]
[321797917,1712521842672,-158.00404978,0.00024738,2]
[321797918,1712521842681,-505.23422639,0.0002475,2]
[321797919,1712521842690,-6922.41095561,0.0002475,2]
[321797920,1712521842700,-151.0,0.0002475,7]
[321797921,1712521842710,-151.0,0.0002475,7]
[321797922,1712521842720,-151.0,0.0002475,7]
[321797923,1712521842729,-151.0,0.0002475,7]
[321797924,1712521842739,-151.0,0.0002475,7]
[321797925,1712521842748,-205.893252,0.0002475,7]
[321797926,1712521842758,-205.893252,0.0002475,7]
[321797927,1712521842768,-151.0,0.0002475,7]
[321797928,1712521842777,-155.80577,0.0002475,7]
[321797929,1712521842786,-151.0,0.0002475,7]
[321797930,1712521842796,-3555.199383,0.0002475,7]
[321797931,1712521842805,-151.0,0.0002475,7]
[321797932,1712521842814,-151.0,0.0002475,7]
[321797933,1712521842824,-151.0,0.0002475,7]
[321797934,1712521842834,-3555.199383,0.0002475,7]
[321797935,1712521842843,-151.0,0.0002475,7]
[321797936,1712521842853,-151.0,0.0002475,7]
[321797937,1712521842862,-151.0,0.0002475,7]
[321797938,1712521842872,-151.0,0.0002475,7]
[321797939,1712521842881,-175.205541,0.0002475,7]
[321797940,1712521842891,-175.205541,0.0002475,7]
[321797941,1712521842900,-151.0,0.0002475,7]
[321797942,1712521842910,-151.0,0.0002475,7]
[321797943,1712521842921,-151.0,0.0002475,7]
[321797944,1712521842930,-151.0,0.0002475,7]
[321797945,1712521842939,-1148.687134,0.0002475,7]
[321797946,1712521843111,-1148.687134,0.0002475,7]
[321797947,1712521843121,-4267.03494784,0.000248,2]
[321797948,1712521843130,-458.01647253,0.00024819,2]
[321797949,1712521843139,-198.29553207,0.00024841,2]
[321797950,1712521843149,-13680.70974568,0.00024857,2]
[321797951,1712521843158,-6319.9343345,0.00024866,2]
[321797953,1712521843167,-13750.7477325,0.00024866,2]
[321797954,1712521843177,-100018.2930525,0.00024866,2]
[321797955,1712521843186,-440.65,0.00024873,2]
[321797956,1712521843196,-519.99,0.00024873,2]
[321797957,1712521843206,-152.16,0.00024873,2]
[321797958,1712521843215,-359.57,0.00024873,2]
[321797959,1712521843225,-151.7,0.00024873,2]
[321797960,1712521843235,-317.97,0.00024873,2]
[321797961,1712521843244,-314.71,0.00024873,2]
[321797962,1712521843253,-4601727.57621322,0.00024883,2]
[321797963,1712521843270,-480648.39856715,0.00024883,2]
[321797964,1712521843291,-406.99923429,0.000209,3]
[321797965,1712521843300,-7603.62752895,0.00024883,2]
[321797966,1712521843312,-3755.82326755,0.00024883,2]
[321797967,1712521843324,-2978.74050305,0.00024883,2]
[321797968,1712521843371,-691.71,0.00024883,2]
[321797969,1712521843919,-151.0,0.00024697,7]
[321797970,1712521843929,-127.70299969,0.00024883,2]
[321797971,1712521843940,-778.04685246,0.00024883,2]
[321797972,1712521843959,-7984.98884159,0.00024883,2]
[321797973,1712521844042,-150.0,0.00022132,2]
[321797974,1712521844052,-1133.91960236,0.00024883,2]
[321797975,1712521844064,-314.756982,0.00024883,2]
[321797976,1712521844076,-2728.78491886,0.00024883,2]
[321797977,1712521844703,-574.94077105,0.00020999,2]
[321797978,1712521844712,-529.459,0.00022132,2]
[321797979,1712521844722,-9952.60022895,0.00024883,2]
[321797980,1712521844838,-406.99923429,0.000209,3]
[321797981,1712521844847,-85.50076566,0.00024883,2]
[321797982,1712521844859,-5292.20229998,0.00024883,2]
[321797983,1712521844870,-4682.18783021,0.00024883,2]
[321797984,1712521844883,-1179.22983415,0.00024883,2]
[321797994,1712521845780,-8e-08,0.00021734,2]
[321797995,1712521845791,-738.40137978,0.00021734,2]
[321797996,1712521845802,-135.71562014,0.00021734,2]
[321797997,1712521845811,-390.19937986,0.00021899,2]
[321797998,1712521845823,-580.83,0.00021899,2]
[321797999,1712521845849,-1000.0,0.00021899,2]
[321798000,1712521845860,-381.75056136,0.00021899,2]
[321798001,1712521845870,-1531.21623864,0.00024883,2]
[321798002,1712521845982,-0.02160287,0.00024883,2]
[321798003,1712521845994,-742.29431943,0.00024883,2]
[321798022,1712521865177,200.47,0.00023,30]
[321798025,1712522670439,-600.0,0.00019,3]
[321798028,1712522755575,4000.0,0.0003,30]
[321798029,1712522833155,-155.0,0.00018999,2]
[321798030,1712522833176,-64.98666845,0.00019,3]
[321798033,1712522952564,1542.02282521,0.000189,2]
[321798035,1712523024613,292.06930916,0.000189,2]
[321798036,1712523025346,360.4075085,0.000189,2]
[321798037,1712523027483,179.236496,0.000189,2]
[321798053,1712523032254,-4500.0,0.00018999,2]
[321798054,1712523032264,-1085.01333155,0.00019,3]
[321798055,1712523032274,-11980.27217498,0.00019599,2]
[321798056,1712523032284,-306.54353149,0.000197,2]
[321798057,1712523032294,-352.08,0.00020297,2]
[321798058,1712523032303,-254.69,0.00020448,2]
[321798059,1712523032313,-3978.82,0.00020448,2]
[321798060,1712523032323,-608.45213808,0.00020448,2]
[321798061,1712523032332,-150.0,0.000205,2]
[321798062,1712523032342,-601.0,0.00020548,2]
[321798063,1712523032352,-1000.0,0.000209,2]
[321798064,1712523032362,-150.99,0.00020932,2]
[321798065,1712523032372,-499.99,0.00020932,2]
[321798066,1712523032385,-150.0,0.00020932,2]
[321798067,1712523032394,-150.99,0.00020948,2]
[321798068,1712523032403,-5863.24,0.00020948,2]
[321798069,1712523032412,-300.0,0.00020998,2]
[321798070,1712523032423,-300.0,0.00020998,2]
[321798071,1712523032432,-300.0,0.00020998,2]
[321798072,1712523032441,-300.0,0.00020998,2]
[321798073,1712523032452,-300.0,0.00020998,2]
[321798074,1712523032461,-300.0,0.00020998,2]
[321798075,1712523032471,-300.0,0.00020998,2]
[321798076,1712523032480,-49.6757239,0.00020998,2]
[321798077,1712523032504,-250.3242761,0.00020998,2]
[321798078,1712523032514,-300.0,0.00020999,2]
[321798079,1712523032524,-300.0,0.00020999,2]
[321798080,1712523032533,-300.0,0.00020999,2]
[321798081,1712523032543,-300.0,0.00020999,2]
[321798082,1712523032552,-361.01131834,0.00020999,2]
[321798083,1712523032562,-1800.0,0.00021,3]
[321798084,1712523032571,-150.0,0.00021,2]
[321798085,1712523032581,-150.0,0.000215,2]
[321798086,1712523032590,-601.0,0.00021575,2]
[321798087,1712523032600,-640.50173907,0.00022,2]
[321798088,1712523032611,-150.0,0.00022,2]
[321798089,1712523032621,-2795.93139993,0.00022112,2]
[321798090,1712523032630,-327.34,0.00022122,2]
[321798091,1712523032640,-963.0,0.00022122,2]
[321798092,1712523032650,-459.0,0.00022122,2]
[321798093,1712523032660,-220.749,0.00022122,2]
[321798094,1712523032669,-299.468,0.00022122,2]
[321798095,1712523032679,-354.0,0.00022122,2]
[321798096,1712523032688,-214.0,0.00022122,2]
[321798097,1712523032697,-223.372,0.00022122,2]
[321798098,1712523032706,-4792.0,0.00022122,2]
[321798099,1712523032715,-2861.772,0.00022122,2]
[321798100,1712523032724,-37530.0,0.00022122,2]
[321798101,1712523032733,-1312.0,0.00022122,2]
[321798102,1712523032742,-199.826,0.00022122,2]
[321798103,1712523032751,-839.51,0.00022153,2]
[321798104,1712523032760,-500.0,0.00022266,7]
[321798105,1712523032769,-299.08,0.00022314,2]
[321798106,1712523032779,-250.0,0.0002242,2]
[321798107,1712523032790,-1500.0,0.00022455,2]
[321798108,1712523032799,-150.0,0.000225,2]
[321798109,1712523032809,-352.08,0.0002256,2]
[321798110,1712523032818,-361.6,0.00022584,2]
[321798111,1712523032827,-1000.0,0.00022584,2]
[321798112,1712523032837,-601.0,0.00022603,2]
[321798113,1712523032847,-250.0,0.00022606,2]
[321798114,1712523032857,-200.0,0.00022758,2]
[321798115,1712523032866,-800.0,0.00022758,2]
[321798116,1712523032876,-500.0,0.00022758,2]
[321798117,1712523032885,-165.0,0.0002285,2]
[321798118,1712523032895,-638.4,0.00022941,2]
[321798119,1712523032905,-15554.34795337,0.00023,2]
[321798120,1712523032914,-1850.0,0.00023,3]
[321798121,1712523032923,-150.0,0.00023,2]
[321798122,1712523032933,-157.90053126,0.00023,2]
[321798123,1712523032942,-306.94010752,0.00023057,2]
[321798124,1712523032952,-290.88682845,0.00023058,2]
[321798125,1712523032961,-381.68039378,0.00023071,2]
[321798126,1712523032971,-290.88682845,0.00023075,2]
[321798127,1712523032981,-364.81065288,0.00023094,2]
[321798128,1712523032990,-155.70581638,0.00023097,2]
[321798129,1712523033000,-364.81065288,0.0002319,2]
[321798130,1712523033009,-287.44126024,0.00023259,2]
[321798131,1712523033019,-150.97320543,0.00023265,2]
[321798132,1712523033028,-288.29,0.00023288,2]
[321798133,1712523033038,-380.0,0.00023288,2]
[321798134,1712523033047,-380.0,0.00023288,2]
[321798135,1712523033057,-380.0,0.00023288,2]
[321798136,1712523033067,-380.0,0.00023288,2]
[321798137,1712523033076,-403.66,0.00023288,2]
[321798138,1712523033086,-158.00404978,0.00023301,2]
[321798139,1712523033095,-290.88682845,0.00023308,2]
[321798140,1712523033104,-287.44126024,0.00023319,2]
[321798141,1712523033115,-150.97320543,0.00023332,2]
[321798142,1712523033124,-150.97320543,0.00023347,2]
[321798143,1712523033133,-381.68039378,0.0002339,2]
[321798144,1712523033143,-364.81065288,0.00023439,2]
[321798145,1712523033153,-381.68039378,0.00023487,2]
[321798146,1712523033163,-150.0,0.000235,2]
[321798147,1712523033172,-1314.31991731,0.000235,2]
[321798148,1712523033181,-381.68039378,0.00023513,2]
[321798149,1712523033190,-364.81065288,0.00023564,2]
[321798150,1712523033200,-601.0,0.0002363,2]
[321798151,1712523033209,-287.44126024,0.00023691,2]
[321798152,1712523033218,-159.50728933,0.00023768,2]
[321798153,1712523033229,-800.0,0.00023781,2]
[321798154,1712523033239,-155.70581638,0.00023784,2]
[321798155,1712523033248,-168.5798765,0.00023804,2]
[321798156,1712523033257,-150.81098517,0.0002392,2]
[321798157,1712523033266,-159.00749083,0.0002393,2]
[321798158,1712523033276,-155.70581638,0.00023947,2]
[321798159,1712523033288,-381.68039378,0.00023953,2]
[321798160,1712523033298,-287.44126024,0.00023971,2]
[321798161,1712523033306,-155.70581638,0.00023972,2]
[321798162,1712523033316,-165.0,0.0002399,2]
[321798163,1712523033326,-430.99866383,0.00024,2]
[321798164,1712523033335,-150.0,0.00024,2]
[321798165,1712523033346,-150.0,0.00024,2]
[321798166,1712523033355,-189.03866793,0.00024002,2]
[321798167,1712523033365,-151.75337267,0.00024025,2]
[321798168,1712523033374,-155.70581638,0.00024061,2]
[321798169,1712523033387,-165.24627672,0.00024099,2]
[321798170,1712523033396,-181.64395997,0.000241,2]
[321798171,1712523033405,-181.64395997,0.000241,2]
[321798172,1712523033415,-181.64395997,0.000241,2]
[321798173,1712523033425,-181.64395997,0.000241,2]
[321798174,1712523033434,-181.64395997,0.000241,2]
[321798175,1712523033444,-181.64395997,0.000241,2]
[321798176,1712523033454,-181.64395997,0.000241,2]
[321798177,1712523033464,-181.64395997,0.000241,2]
[321798178,1712523033475,-181.64395997,0.000241,2]
[321798179,1712523033485,-181.64395997,0.000241,2]
[321798180,1712523033495,-181.64395997,0.000241,2]
[321798181,1712523033506,-30000.0,0.0002411,2]
[321798182,1712523033518,-181.64395997,0.00024142,2]
[321798183,1712523033528,-157.49368519,0.00024144,2]
[321798184,1712523033538,-364.81065288,0.00024152,2]
[321798185,1712523033548,-152.54484368,0.00024169,2]
[321798186,1712523033558,-290.88682845,0.00024214,2]
[321798187,1712523033567,-150.81098517,0.00024233,2]
[321798188,1712523033577,-155.70581638,0.00024281,2]
[321798189,1712523033587,-151.75337267,0.0002431,2]
[321798190,1712523033597,-181.64395997,0.00024319,2]
[321798191,1712523033608,-181.64395997,0.00024319,2]
[321798192,1712523033618,-155.55764088,0.00024328,2]
[321798193,1712523033628,-2832.21,0.00024329,15]
[321798194,1712523033638,-157.49368519,0.00024339,2]
[321798195,1712523033648,-178.13549668,0.0002442,2]
[321798196,1712523033658,-158.00404978,0.00024469,2]
[321798197,1712523033667,-181.64395997,0.0002449,2]
[321798198,1712523033677,-150.0,0.000245,2]
[321798199,1712523033687,-1000.0,0.000245,2]
[321798200,1712523033697,-157.49368519,0.00024537,2]
[321798201,1712523033707,-181.64395997,0.00024543,2]
[321798202,1712523033716,-364.81065288,0.00024553,2]
[321798203,1712523033726,-290.88682845,0.00024559,2]
[321798204,1712523033736,-181.64395997,0.00024593,2]
[321798205,1712523033745,-181.64395997,0.00024597,2]
[321798206,1712523033755,-1763.24877514,0.00024603,2]
[321798207,1712523033764,-1763.24877514,0.00024608,2]
[321798208,1712523033773,-181.64395997,0.00024612,2]
[321798209,1712523033783,-181.64395997,0.0002462,2]
[321798210,1712523033793,-181.64395997,0.00024622,2]
[321798211,1712523033802,-181.64395997,0.00024622,2]
[321798212,1712523033813,-181.64395997,0.00024622,2]
[321798213,1712523033823,-181.64395997,0.00024622,2]
[321798214,1712523033832,-181.64395997,0.00024622,2]
[321798215,1712523033841,-181.64395997,0.00024622,2]
[321798216,1712523033851,-181.64395997,0.00024622,2]
[321798217,1712523033861,-181.64395997,0.00024622,2]
[321798218,1712523033871,-181.64395997,0.00024622,2]
[321798219,1712523033886,-181.64395997,0.00024622,2]
[321798220,1712523033895,-181.64395997,0.00024622,2]
[321798221,1712523033904,-181.64395997,0.00024622,2]
[321798222,1712523033914,-181.64395997,0.00024622,2]
[321798223,1712523033923,-181.64395997,0.00024622,2]
[321798224,1712523033933,-181.64395997,0.00024622,2]
[321798225,1712523033942,-1763.24877514,0.00024622,2]
[321798226,1712523033952,-181.64395997,0.00024629,2]
[321798227,1712523033961,-1482.86029,0.0002463,2]
[321798228,1712523033971,-290.88682845,0.00024632,2]
[321798229,1712523033980,-22744.39313526,0.00024632,2]
[321798230,1712523033990,-181.64395997,0.00024636,2]
[321798231,1712523033999,-181.64395997,0.00024639,2]
[321798232,1712523034008,-181.64395997,0.0002464,2]
[321798233,1712523034017,-181.64395997,0.0002464,2]
[321798234,1712523034027,-181.64395997,0.0002464,2]
[321798235,1712523034036,-1763.24877514,0.00024646,2]
[321798236,1712523034045,-181.64395997,0.00024648,2]
[321798237,1712523034054,-1763.24877514,0.00024649,2]
[321798238,1712523034063,-1763.24877514,0.0002465,2]
[321798239,1712523034072,-1763.24877514,0.0002465,2]
[321798240,1712523034082,-381.68039378,0.00024651,2]
[321798241,1712523034091,-500.0,0.00024658,2]
[321798242,1712523034100,-601.0,0.00024658,2]
[321798243,1712523034111,-181.64395997,0.00024662,2]
[321798244,1712523034120,-181.64395997,0.00024671,2]
[321798245,1712523034129,-1763.24877514,0.00024672,2]
[321798246,1712523034138,-1763.24877514,0.00024681,2]
[321798247,1712523034148,-153.58020546,0.00024685,2]
[321798248,1712523034158,-150.81098517,0.00024718,2]
[321798249,1712523034169,-181.64395997,0.0002473,2]
[321798250,1712523034178,-181.64395997,0.0002474,2]
[321798251,1712523034188,-181.64395997,0.0002474,2]
[321798252,1712523034197,-181.64395997,0.0002474,2]
[321798253,1712523034208,-181.64395997,0.0002474,2]
[321798254,1712523034218,-181.64395997,0.0002474,2]
[321798255,1712523034227,-157.49368519,0.00024744,2]
[321798256,1712523034237,-505.23422638,0.0002475,2]
[321798257,1712523034246,-6922.41095561,0.0002475,2]
[321798258,1712523034255,-181.64395997,0.00024773,2]
[321798259,1712523034266,-181.64395997,0.00024773,2]
[321798260,1712523034275,-181.64395997,0.00024773,2]
[321798261,1712523034284,-290.88682845,0.00024776,2]
[321798262,1712523034294,-158.00404978,0.0002478,2]
[321798263,1712523034303,-181.64395997,0.0002478,2]
[321798264,1712523034313,-287.44126024,0.00024781,2]
[321798265,1712523034322,-3502.55894778,0.00024783,2]
[321798266,1712523034332,-286.05183614,0.00024783,2]
[321798267,1712523034342,-181.50309318,0.00024783,2]
[321798268,1712523034351,-181.64395997,0.0002479,2]
[321798269,1712523034361,-181.64395997,0.0002479,2]
[321798270,1712523034371,-181.64395997,0.0002479,2]
[321798271,1712523034385,-181.64395997,0.0002479,2]
[321798272,1712523034395,-181.64395997,0.0002479,2]
[321798273,1712523034406,-181.64395997,0.0002479,2]
[321798274,1712523034415,-181.64395997,0.0002479,2]
[321798275,1712523034424,-181.64395997,0.0002479,2]
[321798276,1712523034434,-181.64395997,0.0002479,2]
[321798277,1712523034443,-181.64395997,0.0002479,2]
[321798278,1712523034452,-181.64395997,0.0002479,2]
[321798279,1712523034462,-181.64395997,0.0002479,2]
[321798280,1712523034471,-181.64395997,0.0002479,2]
[321798281,1712523034480,-181.64395997,0.0002479,2]
[321798282,1712523034490,-181.64395997,0.0002479,2]
[321798283,1712523034499,-181.64395997,0.0002479,2]
[321798284,1712523034508,-181.64395997,0.0002479,2]
[321798285,1712523034517,-181.64395997,0.0002479,2]
[321798286,1712523034527,-181.64395997,0.0002479,2]
[321798287,1712523034536,-181.64395997,0.0002479,2]
[321798288,1712523034545,-181.64395997,0.0002479,2]
[321798289,1712523034554,-181.64395997,0.0002479,2]
[321798290,1712523034565,-181.64395997,0.0002479,2]
[321798291,1712523034574,-181.64395997,0.0002479,2]
[321798292,1712523034583,-181.64395997,0.0002479,2]
[321798293,1712523034592,-181.64395997,0.0002479,2]
[321798294,1712523034602,-181.64395997,0.0002479,2]
[321798295,1712523034611,-155.0,0.00024799,2]
[321798296,1712523034620,-4267.03494784,0.000248,2]
[321798297,1712523034630,-394.0,0.000248,2]
[321798298,1712523034639,-759.7388013,0.000248,2]
[321798299,1712523034648,-476514.91891189,0.000248,2]
[321798300,1712523034761,-1701.5218498,0.000248,2]
[321798301,1712523034772,-352.08,0.00024824,2]
[321798302,1712523034781,-286.05183612,0.00024832,2]
[321798303,1712523034791,-181.50309317,0.00024832,2]
[321798304,1712523034801,-800.0,0.00024849,2]
[321798305,1712523034811,-800.0,0.00024849,2]
[321798306,1712523034820,-151.75337267,0.00024862,2]
[321798307,1712523034830,-7885.3840462,0.00024873,2]
[321798308,1712523034839,-137499.5241595,0.00024873,2]
[321798309,1712523034849,-9875.3424136,0.00024873,2]
[321798310,1712523034858,-16968.6546157,0.00024873,2]
[321798311,1712523034867,-1204.1108823,0.00024873,2]
[321798312,1712523034877,-286.05183612,0.0002488,2]
[321798313,1712523034886,-181.50309317,0.0002488,2]
[321798314,1712523034895,-783.28322174,0.00024881,2]
[321798315,1712523034905,-704.31825497,0.00024881,2]
[321798316,1712523034914,-1190.69021461,0.00024881,2]
[321798317,1712523034923,-14044.00921259,0.00024881,2]
[321798318,1712523034933,-500.0,0.00024881,2]
[321798319,1712523034943,-162.32251009,0.00024882,2]
[321798320,1712523034952,-155.0,0.00024882,2]
[321798321,1712523034961,-287.47038552,0.00024882,2]
[321798322,1712523034970,-76622.34631833,0.00024882,2]
[321798323,1712523034982,-299.175,0.00024882,2]
[321798324,1712523035320,-181.64395997,0.0002479,2]
[321798325,1712523035330,-5499.36516497,0.00024882,2]
[321798326,1712523035341,-70761.72103194,0.00024882,2]
[321798444,1712523038649,354.96500919,0.000189,2]
[321798445,1712523039107,-181.64395997,0.0002479,2]
[321798446,1712523039117,-181.64395997,0.0002479,2]
[321798447,1712523039126,-181.64395997,0.0002479,2]
[321798448,1712523039135,-181.64395997,0.0002479,2]
[321798449,1712523039144,-181.64395997,0.0002479,2]
[321798450,1712523039154,-181.64395997,0.0002479,2]
[321798451,1712523039163,-181.64395997,0.0002479,2]
[321798452,1712523039172,-181.64395997,0.0002479,2]
[321798453,1712523039181,-181.64395997,0.0002479,2]
[321798454,1712523039190,-181.64395997,0.0002479,2]
[321798455,1712523039200,-181.64395997,0.0002479,2]
[321798456,1712523039211,-181.64395997,0.0002479,2]
[321798457,1712523039221,-181.64395997,0.0002479,2]
[321798458,1712523039230,-181.64395997,0.0002479,2]
[321798459,1712523039239,-181.64395997,0.0002479,2]
[321798460,1712523039248,-181.64395997,0.0002479,2]
[321798461,1712523039258,-181.64395997,0.0002479,2]
[321798462,1712523039267,-181.64395997,0.0002479,2]
[321798463,1712523039276,-3437.62005937,0.00024882,2]
[321798464,1712523039294,-298324.63191883,0.00024882,2]
[321798465,1712523039303,-182323.76664832,0.00024882,2]
[321798466,1712523039385,-8927.81355479,0.00024882,2]
[321798467,1712523039396,-2343.75879858,0.00024882,2]
[321798468,1712523039407,-4438.32668102,0.00024882,2]
[321798469,1712523039438,-19659.63250079,0.00024882,2]
[321798470,1712523039450,-578.9776056,0.00024882,2]
[321798483,1712523040389,-1799.94670493,0.00024882,2]
[321798484,1712523040401,-1499.97141644,0.00024882,2]
[321798485,1712523040412,-288028.39510057,0.00024882,2]
[321798486,1712523040436,-1703.29722562,0.00024882,2]
[321798487,1712523040447,-448.39500003,0.00024882,2]
[321798488,1712523040488,-460.74799849,0.00024882,2]
[321798491,1712523043065,-774.14010659,0.00024882,2]
[321798492,1712523043281,-887.97864095,0.00024882,2]
[321798493,1712523043295,-136989.38043825,0.00024882,2]
[321798494,1712523043307,-1376.76796097,0.00024882,2]
[321798495,1712523043372,-69409.34,0.00024882,2]
[321798503,1712523045491,179.236496,0.000189,2]
[321798504,1712523046613,292.06930916,0.000189,2]
[321798505,1712523047187,-12180.12008488,0.00024882,2]
[321798506,1712523058265,434.03584678,0.000189,2]
[321798507,1712523058286,343.57883357,0.000189,2]
[321798508,1712523059342,360.4075085,0.000189,2]
[321798509,1712523060194,155.0,0.000189,2]
[321798510,1712523064664,3026.00338451,0.000189,2]
[321798511,1712523065796,179.236496,0.000189,2]
[321798512,1712523068271,2566.31377742,0.000189,2]
[321798523,1712523255643,1000.0,0.000135,2]
[321798524,1712523255694,286.23896985,0.000125,2]
[321798526,1712523269449,652.83105085,0.00018,2]
[321798528,1712523294834,407.55601987,0.00018,2]
[321798529,1712523296701,155.0,0.00018,2]
[321798530,1712523297110,292.06930916,0.00018,2]
[321798531,1712523309127,438.6508532,0.00018,2]
[321798532,1712523310616,407.55601987,0.00018,2]
[321798533,1712523312707,292.94702815,0.00018,2]
[321798534,1712523330631,221.60124854,0.00018,2]
[321798537,1712523370067,179.236496,0.00018,2]
[321798538,1712523384022,316.95160036,0.00018,2]
[321798539,1712523417187,-3166.157343,0.00018424,2]
[321798540,1712523417211,-1313.03623635,0.00018517,2]
[321798541,1712523417236,-383.14,0.00018518,2]
[321798542,1712523417259,-937.66642065,0.00018799,2]
[321798546,1712523786430,363.98,0.00017773,2]
[321798548,1712524043112,-983.949043,0.00018606,2]
[321798549,1712524043134,-174.38832174,0.000187,2]
[321798550,1712524043155,-132.04303519,0.0001875,2]
[321798557,1712524149162,-150.0,0.00018798,2]
[321798558,1712524149183,-6396.91194966,0.00018799,2]
[321798559,1712524158143,-3616.54472969,0.00018799,2]
[321798560,1712524158163,-216.73360827,0.00018799,2]
[321798561,1712524158181,-431.37210144,0.00018899,2]
[321798562,1712524158200,-2669.4606606,0.000189,2]